Cogmind - Beta 13 @@@ ROGUE MODE // 2024.04.02 @ 14:06:47 Player: TheSecutor Result: Destroyed by Y-45 Defender with Heavy Assault Rifle Performance ------------- Evolutions (2) 1000 Regions Visited (3) 600 Robots Destroyed (19) 95 Value Destroyed (341) 341 Prototype IDs (0) 0 Alien Tech Used (0) 0 Bonus (0) 0 TOTAL SCORE: 2036 Bonus ------- None Cogmind --------- Core Integrity 0/550 Matter 175/300 Energy 100/100 System Corruption 0% Temperature Cool (9) Movement Core (750) Ox14 Location -8/Materials Parts ------- > --- POWER (1) -------- (None) > --- PROPULSION (3) --- (None) > --- UTILITY (4) ------ High-capacity Storage Unit Visual Processing Unit Improved Signal Interpreter > --- WEAPON (3) ------- Heavy Flail > --- INVENTORY (20) --- Ion Engine Aluminum Leg Terrain Scanner Peak State ------------ > --- POWER ------------ Light Ion Engine > --- PROPULSION ------- Wheel Wheel > --- UTILITY ---------- High-capacity Storage Unit Visual Processing Unit Sensor Array Improved Signal Interpreter > --- WEAPON ----------- Datajack Plasma Cutter Heavy Flail > --- INVENTORY -------- Ion Engine Aluminum Leg Aluminum Leg Terrain Scanner [Rating: 16] Favorites ----------- Power Light Ion Engine Engine Light Ion Engine Power Core Light Nuclear Core Propulsion Wheel Treads Armored Treads Leg Aluminum Leg Wheel Wheel Utility Medium Storage Unit Device Sensor Array Storage Medium Storage Unit Processor Visual Processing Unit Protection Core Shielding Weapon Assault Rifle Energy Gun Small Laser Ballistic Gun Assault Rifle Special Weapon Plasma Cutter Impact Weapon Heavy Flail Special Melee Weapon Datajack Build | -11 -10 -9 -8 ------- Run | Yrd Mat Mat Mat Slots Evolved 4 | . . 2 2 Power . | . . . . Propulsion 1 | . . 1 . Utility 2 | . . . 2 Weapon 1 | . . 1 . Parts Attached 24 | 6 3 3 12 Power 5 | 1 1 2 1 Engine 4 | 1 1 2 . Core 1 | . . . 1 Reactor . | . . . . Propulsion 5 | 2 . . 3 Treads 1 | . . . 1 Leg 2 | . . . 2 Wheel 2 | 2 . . . Hover . | . . . . Flight . | . . . . Utility 7 | 1 2 . 4 Device 1 | . . . 1 Storage 3 | 1 1 . 1 Processor 2 | . . . 2 Hackware . | . . . . Protection 1 | . 1 . . Artifact . | . . . . Weapon 7 | 2 . 1 4 Energy Gun 1 | . . . 1 Energy Cannon . | . . . . Ballistic Gun 3 | 2 . 1 . Ballistic Cannon . | . . . . Launcher . | . . . . Special Weapon 1 | . . . 1 Impact Weapon 1 | . . . 1 Slashing Weapon . | . . . . Piercing Weapon . | . . . . Special Melee Weapon 1 | . . . 1 Unidentified Prototypes . | . . . . Parts Lost 11 | . . 1 10 Power 3 | . . 1 2 Propulsion 5 | . . . 5 Utility 1 | . . . 1 Weapon 2 | . . . 2 Highest Loss Streak 6 | . . 1 6 To Critical Strikes . | . . . . Average Slot Usage (%) 82 | . 91 86 69 Engine 9 | . 14 9 4 Leg 1 | . . . 4 Wheel 20 | . 28 22 9 Device 1 | . . . 4 Storage 11 | . 14 11 9 Processor 5 | . . . 15 Protection 6 | . 5 11 2 Ballistic Gun 21 | . 28 33 5 Impact Weapon 2 | . . . 6 Naked Turns . | . . . . Heaviest Build 49 | 14 22 19 49 Greatest Support 25 | 20 20 20 25 Greatest Overweight (x) 4 | . 1 . 4 Average Overweight (x) . | . . . 1 Largest Inventory Capacity 20 | 8 10 10 20 Average Capacity 11 | 7 8 10 17 Most Carried 9 | 4 6 9 9 Average Carried 5 | 1 4 6 5 Final Capacity 20 | 8 10 10 20 Final Carried 9 | 4 6 9 3 Class Distribution -------------------- 63% | Mutant 18% | Tank 10% | Assassin 7% | Skirmisher Dominant Class ---------------- Mutant | -10/Materials Tank | -9/Materials Mutant | -8/Materials Resources | -11 -10 -9 -8 ----------- Run | Yrd Mat Mat Mat Matter Collected 396 | 130 49 72 145 Remotely . | . . . . Salvage Created 390 | . 49 97 244 Parts 28 | . 4 17 7 Haulers Intercepted . | . . . . Recyclers Shooed 1 | . . 1 . Parts Field Recycled . | . . . . Retrieved Matter . | . . . . Parts Self-Destructed . | . . . . Prevented . | . . . . Kills | -11 -10 -9 -8 ------- Run | Yrd Mat Mat Mat Combat Hostiles Destroyed 19 | . 3 7 9 Melee 3 | . . . 3 Guns 13 | . 3 7 3 Classes Destroyed 3 | . 1 . 2 Swarmer 15 | . 3 7 5 Grunt 3 | . . . 3 Duelist 1 | . . . 1 Best Kill Streak 7 | . 3 7 4 Combat Bots Only 7 | . 3 7 4 Max Kills in Single Turn 2 | . 1 2 1 Gunslinging 1 | . . 1 . Exploded . | . . . . Melee 1 | . . . 1 Uniques/NPCs Destroyed . | . . . . Combat | -11 -10 -9 -8 -------- Run | Yrd Mat Mat Mat Hostile Shots Fired 197 | . 19 26 152 Missed 48 | . 3 10 35 Damage Taken 1807 | . 123 133 1551 Core 616 | . 26 29 561 Absorbed by Shields . | . . . . Redirected to Shielding 8 | . . 5 3 Core Remaining (%) 93 | 100 89 92 . Volleys Fired 26 | . 7 10 9 Largest 3 | . 2 3 3 Hottest 80 | . 40 60 80 Shots Fired 62 | . 14 29 19 Gun 58 | . 14 29 15 Cannon . | . . . . Launcher . | . . . . Special 4 | . . . 4 Kinetic 53 | . 14 29 10 Thermal 9 | . . . 9 Explosive . | . . . . Electromagnetic . | . . . . Robot Hit Streak 6 | . 4 4 6 Robot Miss Streak 4 | . 2 4 4 Penetration Max . | . . . . Secondary Targets 2 | . . 1 1 Max Gunslinging Chain 1 | . . 1 1 Shots Hit Robots 45 | . 9 13 23 Core Hits 18 | . 3 8 7 Critical Kills 1 | . . . 1 Critical Parts Destroyed 2 | . . . 2 Critical Strikes 3 | . . . 3 Smash 3 | . . . 3 Melee Attacks 18 | . . . 18 Impact 18 | . . . 18 Slashing . | . . . . Piercing . | . . . . Sneak Attacks . | . . . . Combat Hostiles . | . . . . Follow-up Attacks . | . . . . Damage Inflicted 994 | . 139 169 686 Guns 402 | . 139 167 96 Cannons . | . . . . Explosions . | . . . . Melee 545 | . . . 545 Ramming 2 | . . 2 . Kinetic 369 | . 139 167 63 Thermal 78 | . . . 78 Explosive . | . . . . Electromagnetic . | . . . . Impact 545 | . . . 545 Slashing . | . . . . Piercing . | . . . . Highest Corruption . | . . . . Average Corruption . | . . . . Corruption Purged . | . . . . Corruption Blocked . | . . . . Overload Shots . | . . . . Overflow Damage 183 | . . . 183 Projectiles . | . . . . Explosions . | . . . . Melee 183 | . . . 183 Knockbacks 2 | . . . 2 Impact 2 | . . . 2 Kinetic . | . . . . Secondary . | . . . . Self-Inflicted Damage 1 | . . 1 . Shots . | . . . . Rammed 1 | . . 1 . Targets Rammed 1 | . . 1 . Kicked . | . . . . Crushed . | . . . . Highest Temperature . | . . . . Average Temperature . | . . . . Received Heat Transfer 450 | . . 9 441 Siege Activations . | . . . . Robots Corrupted . | . . . . Combat Hostiles . | . . . . Parts Fried 1 | . . . 1 Impact Corruptions 7 | . . . 7 Robots Melted . | . . . . Combat Hostiles . | . . . . Parts Melted . | . . . . Heat Transferred 223 | . . . 223 Parts Sabotaged . | . . . . Parts Stolen . | . . . . Parts Stripped . | . . . . Power Chain Reactions . | . . . . Alert | -11 -10 -9 -8 ------- Run | Yrd Mat Mat Mat Peak Influence 295 | . 85 215 295 Initial 90 | . . 35 90 Average 110 | . 47 131 179 Maximum Alert Level 1 | . . 1 1 Low Security (%) 76 | 100 100 53 65 Level 1 23 | . . 46 34 Level 2 . | . . . . Level 3 . | . . . . Level 4 . | . . . . Level 5 . | . . . . High Security . | . . . . Max Security . | . . . . Squads Dispatched 5 | . 2 1 2 Investigation . | . . . . Extermination . | . . . . Reinforcement 5 | . 2 1 2 Assault . | . . . . Garrison . | . . . . Intercept . | . . . . Searches Triggered . | . . . . Construction Impeded . | . . . . Haulers Reinforced . | . . . . Active Scanning Responses . | . . . . Cargo Convoy Interrupts . | . . . . Stealth | -11 -10 -9 -8 --------- Run | Yrd Mat Mat Mat Distress Signals 3 | . . 2 1 Communications Jammed . | . . . . Distress Signals . | . . . . Times Spotted 36 | . 4 10 22 Peak Tracking Total 13 | . 3 5 13 Tactical Retreats 2 | . . . 2 Traps | -11 -10 -9 -8 ------- Run | Yrd Mat Mat Mat Traps Triggered . | . . . . Indirectly . | . . . . Trap Hack Attempts . | . . . . Triggered . | . . . . Disarmed . | . . . . Reprogrammed . | . . . . Reused . | . . . . Traps Extracted . | . . . . Installed . | . . . . Triggered . | . . . . Machines | -11 -10 -9 -8 ---------- Run | Yrd Mat Mat Mat Machines Disabled . | . . . . Max in Single Turn . | . . . . Machines Repaired . | . . . . Machines Dismantled . | . . . . Machines Sabotaged . | . . . . Overloaded Fab Kills . | . . . . Hacking | -11 -10 -9 -8 --------- Run | Yrd Mat Mat Mat Machines Accessed 1 | . . 1 . Terminals . | . . . . Fabricators . | . . . . Repair Stations . | . . . . Recycling Units . | . . . . Scanalyzers 1 | . . 1 . Garrison Access . | . . . . Total Hacks 2 | . . 2 . Successful . | . . . . Failed 2 | . . 2 . Catastrophic . | . . . . Database Lockouts . | . . . . Manual . | . . . . Terminals . | . . . . Fabricators . | . . . . Repair Stations . | . . . . Recycling Units . | . . . . Scanalyzers 2 | . . 2 . Garrison Access . | . . . . Terminal Hacks . | . . . . Fabricator Hacks . | . . . . Repair Station Hacks . | . . . . Recycling Unit Hacks . | . . . . Scanalyzer . | . . . . Garrison Access Hacks . | . . . . Unauthorized Hacks . | . . . . Terminals . | . . . . Fabricators . | . . . . Repair Stations . | . . . . Recycling Units . | . . . . Scanalyzers . | . . . . Garrison Access . | . . . . Data Cores Recovered . | . . . . Used . | . . . . Hacking Detections 1 | . . 1 . Full Trace Events . | . . . . Feedback Events . | . . . . Feedback Blocked . | . . . . Robot Schematics Acquired . | . . . . Robots Built . | . . . . Authchips . | . . . . Time . | . . . . Total Robot Build Rating . | . . . . Part Schematics Acquired . | . . . . Parts Built . | . . . . Authchips . | . . . . Time . | . . . . Total Part Build Rating . | . . . . Parts Repaired . | . . . . Time . | . . . . Parts Recycled . | . . . . Recycled Matter . | . . . . Retrieved Matter . | . . . . Retrieved Components . | . . . . Parts Scanalyzed . | . . . . Part Schematics Acquired . | . . . . Parts Damaged . | . . . . Bothacking | -11 -10 -9 -8 ------------ Run | Yrd Mat Mat Mat Used RIF Installer . | . . . . Robots Hacked . | . . . . Non-combat . | . . . . Combat . | . . . . Robot Hacks Applied . | . . . . Relay Couplers Released . | . . . . Fabnet Peak Effective % . | . . . . Robots Rewired . | . . . . Allies Hacked . | . . . . Hacks Repelled . | . . . . Allies | -11 -10 -9 -8 -------- Run | Yrd Mat Mat Mat Total Allies . | . . . . Largest Group . | . . . . Highest-Rated Group . | . . . . Highest-Rated Ally . | . . . . Total Orders . | . . . . Ally Attacks . | . . . . Total Damage . | . . . . Kills . | . . . . Allies Corrupted . | . . . . Allies Melted . | . . . . Intel | -11 -10 -9 -8 ------- Run | Yrd Mat Mat Mat Robot Analysis Total . | . . . . Derelict Logs Recovered . | . . . . Drone Launches . | . . . . Drone Recoveries . | . . . . Exploration | -11 -10 -9 -8 ------------- Run | Yrd Mat Mat Mat Turns Passed 627 | 48 202 170 207 Spaces Moved 505 | 45 212 156 92 Core 1 | 1 . . . Treads 2 | . . . 2 Legs 17 | . . . 17 Wheels 485 | 44 212 156 73 Hover . | . . . . Flight . | . . . . Fastest Speed 50 | 50 80 80 80 Average Speed 88 | 79 80 80 123 Slowest Speed 400 | 80 95 80 400 Overloaded Moves . | . . . . Propulsion Burnouts . | . . . . Robots Hopped . | . . . . Cave-ins Triggered . | . . . . Exploration Rate (%) 15 | 3 33 19 8 Regions Visited 3 Branch Regions . Pre-discovered Areas . | . . . . Known Exits Taken . | . . . . Unknown Exits Taken 3 | 1 1 1 . Scrap Searched . | . . . . Spaces Dug . | . . . . Terrain Destroyed . | . . . . Melee . | . . . . Projectile . | . . . . AOE . | . . . . Terrain Rammed . | . . . . Walls Destroyed . | . . . . Machines Disabled . | . . . . Actions | -11 -10 -9 -8 --------- Run | Yrd Mat Mat Mat Total 603 | 54 228 180 141 Wait 6 | . . 6 . Move 502 | 44 211 155 92 Hop . | . . . . Pick Up 17 | 4 5 4 4 Fast Attach 9 | 6 . 1 2 Attach 10 | . 1 1 8 Detach . | . . . . Swap 5 | . 2 1 2 Drop 9 | . 2 1 6 Fire 26 | . 7 10 9 Melee 18 | . . . 18 Ram 1 | . . 1 . Kick . | . . . . Crush . | . . . . Escape Stasis . | . . . . Rewire . | . . . . Trap . | . . . . Miscellaneous . | . . . . Route ------- -11/Scrapyard -10/Materials -9/Materials -8/Materials History --------- Turn | Location | Event 18 | -11/Scrapyard | Discovered new exit (range 15) 49 | -11/Scrapyard | Entered Materials 206 | -10/Materials | Discovered new exit (range 3) 251 | -10/Materials | Entered another Materials area 251 | -9/Materials | Evolved 2 slots: Propulsion x1, Weapon x1 363 | -9/Materials | Destroyed 7 combat bots 391 | -9/Materials | Discovered new exit (range 15) 421 | -9/Materials | Entered another Materials area 421 | -8/Materials | Evolved 2 slots: Utility x2 580 | -8/Materials | Lost 6 parts (1p2n1u2w) 580 | -8/Materials | Core integrity fell below 50% 618 | -8/Materials | Core integrity fell below 20% 628 | -8/Materials | Destroyed by Y-45 Defender with Heavy Assault Rifle Last Messages --------------- reinforcements. ALERT: Hostiles spotted, dispatching reinforcements to Terminal M010. O-24 Administrator locks terminal. Lgt. Nuclear Core destroyed. K-01 Serf destroyed. S-10 Pest misfires. Aluminum Leg destroyed. S-10 Pest misfires. Penetrated by Slug. L-31 Rogue suffers critical hit (Burn). Penetrated by Slug. Critical hit (Burn: +37). L-31 Rogue knocked back. L-31 Rogue suffers critical hit (Smash). Destroyed Melee Analysis Suite. L-31 Rogue system corrupted by crushing effect. L-31 Rogue system terminally corrupted. Core Shielding fried. Arm. Treads destroyed. Map ----- +----------------------------------------------------+ | ?????????????????????????????????????????????????? | | ?????????????????????????????????????????????????? | | ?????????????????????????????????????????????????? | | ?????????????????????????????????????????????????? | | ?????????????????????????????????????????????????? | | ?????????????????????????????????????????????????? | | ?????????????????????????????????????????????????? | | ?????????????????????????????????????????????????? | | ?????????????????????????????????????????????????? | | ???????####??????#####???????????????????????????? | | ???????# ????# #??????????###??????????????? | | ???????# ??# ###???????? #??????????????? | | ???????#!]/ # # #????????# #??????????????? | | ???????#]// + #????????# #??????????????? | | ???????#]/ """ # ###????????# #??????????????? | | ???????# ] ""??# #??????????# #??????????????? | | ???????? ????# #??????????# #??????????????? | | ????????? ??????# ############/###????????????? | | ?????????????????# ## [#????????????? | | ?????????????????# ##! ! #????????????? | | ?????????????????# ## [ [ #????????????? | | ?????????????????# ## #????????????? | | ?????????????????# ## #????????????? | | ????????????????## ## #????????????? | | ????????????????#o #####;#########????????????? | | ????????????????# ""r Y %@ #???????????????????? | | ????????????????# T gx #???????????????????? | | ????????????????# gs s #???????????????????? | | ????????????????# #####x##???????????????????? | | ????????????#######+#######w#????????????????????? | | ????????????# [ # #????????????????????? | | ????????????# """ """ # #????????????????????? | | ????????????# """ """ "" # #????????????????????? | | ????????????# """ """ S"" # #????????????????????? | | ????????????# ! # #????????????????????? | | ????????????# = +%#????????????????????? | | ????????????###############%#????????????????????? | | ??????????????????????????# #????????????????????? | | ??????????????????????????# #????????????????????? | | ??????????????????????????# #????????????????????? | | ??????????????????????????# #????????????????????? | | ??????????????????????????# ????????????????????? | | ??????????????????????????###????????????????????? | | ?????????????????????????????????????????????????? | | ?????????????????????????????????????????????????? | | ?????????????????????????????????????????????????? | | ?????????????????????????????????????????????????? | | ?????????????????????????????????????????????????? | | ?????????????????????????????????????????????????? | | ?????????????????????????????????????????????????? | +----------------------------------------------------+ Best States ------------- Heat Dissipation 31 Energy Generation 14 Energy Capacity 250 Matter Stores 175 Matter Capacity 300 Sight Range 18 Robot Scan Range 14 Terrain Scan Density 10 Core Shielding 20 Evasion (%) 44 Recoil Reduction 1 Item Schematics ----------------- None Robot Schematics ------------------ None Fabricated ------------ Nothing Alien Tech Used ----------------- None Achievements -------------- None Challenges ------------ None Game ------ Seed NetworkIntegrityGreatsword Manual? 0 Play Time 00:09:23 Cumulative 1.6 hours Start 2024.04.02 @ 13:57:42 End 2024.04.02 @ 14:06:47 Sessions 1 Manual Loads 0 Difficulty Rogue Special Mode None Game No. 4 Rogue 4 Adventurer 0 Explorer 0 Win Type - Total 0 Types 0/0/0/0/0/0/0/0/0 Lore% 1 Gallery% 7 Achievement% 6 Wizard Run 0 Options --------- Layout 1 ASCII 0 Keyboard 0 Movement Mouse Keybinds 0 Fullscreen 1 Font 24/Smallcaps Map View 50x35 Zoom Use 0% Tactical HUD 0 Map Filters NONE Filters NONE Steam 1 RUN: 71b5e95b-c394-4256-aa0d-877ede074174